Cogmind - Beta 17.1 @@@ ROGUE MODE // 2026.09.08 @ 20:12:19 Player: MORONI274 Result: Destroyed by Y-45 Defender with Beam Rifle Performance ------------- Evolutions (2) 1000 Regions Visited (3) 600 Robots Destroyed (18) 90 Value Destroyed (313) 313 Prototype IDs (1) 20 Alien Tech Used (0) 0 Bonus (15) 15 TOTAL SCORE: 2038 Bonus ------- High Alert Combat Kills 15 Cogmind --------- Core Integrity 0/550 Matter 238/300 Energy 100/100 System Corruption 0% Temperature Cool (18) Movement Core (50) Location -8/Materials Parts ------- > --- POWER (2) -------- (None) > --- PROPULSION (4) --- (None) > --- UTILITY (3) ------ Structural Scanner Advanced Visual Processing Unit > --- WEAPON (2) ------- (None) > --- INVENTORY (5) ---- Wheel Weight Redist. System Advanced Visual Processing Unit Peak State ------------ > --- POWER ------------ Ion Engine Ion Engine > --- PROPULSION ------- Airjet Flight Unit Flight Unit Improved Flight Unit > --- UTILITY ---------- Weight Redist. System Structural Scanner Advanced Visual Processing Unit > --- WEAPON ----------- Light EM Pulse Cannon Assault Rifle > --- INVENTORY -------- Wheel Weight Redist. System Advanced Visual Processing Unit EM Pulse Gun [Rating: 19] Favorites ----------- Power Ion Engine Engine Ion Engine Propulsion Flight Unit Treads Light Treads Hover Unit Airjet Flight Unit Flight Unit Utility Structural Scanner Device Structural Scanner Storage Small Storage Unit Processor Advanced Visual Processing Unit Weapon Assault Rifle Energy Gun EM Pulse Gun Energy Cannon Light EM Pulse Cannon Ballistic Gun Assault Rifle Launcher Grenade Launcher Build | -11 -10 -9 -8 ------- Run | Yrd Mat Mat Mat Slots Evolved 4 | . . 2 2 Power 1 | . . . 1 Propulsion 2 | . . 1 1 Utility 1 | . . 1 . Weapon . | . . . . Parts Attached 25 | 5 5 3 12 Power 4 | 1 . . 3 Engine 4 | 1 . . 3 Core . | . . . . Reactor . | . . . . Propulsion 7 | 2 2 . 3 Treads 2 | 2 . . . Leg . | . . . . Wheel . | . . . . Hover 1 | . . . 1 Flight 4 | . 2 . 2 Utility 7 | . 3 1 3 Device 5 | . 2 1 2 Storage 1 | . 1 . . Processor 1 | . . . 1 Hackware . | . . . . Protection . | . . . . Artifact . | . . . . Weapon 7 | 2 . 2 3 Energy Gun 3 | 1 . 1 1 Energy Cannon 1 | . . 1 . Ballistic Gun 2 | 1 . . 1 Ballistic Cannon . | . . . . Launcher 1 | . . . 1 Special Weapon . | . . . . Impact Weapon . | . . . . Slashing Weapon . | . . . . Piercing Weapon . | . . . . Special Melee Weapon . | . . . . Unidentified Prototypes 1 | . . . 1 Parts Lost 16 | . . . 16 Power 4 | . . . 4 Propulsion 5 | . . . 5 Utility 2 | . . . 2 Weapon 5 | . . . 5 Highest Loss Streak 16 | . . . 16 To Critical Strikes . | . . . . Average Backups 4 | 2 5 5 4 Power . | . 1 1 . Propulsion 1 | 1 2 2 1 Utility . | . . . 2 Weapon 1 | . 2 1 . Tool/Special . | . . . . Unused Backups 6 | . 3 . 3 Power 1 | . 1 . . Propulsion 2 | . . . 2 Utility 1 | . . . 1 Weapon 2 | . 2 . . Tool/Special . | . . . . Average Slot Usage (%) 84 | . 94 81 74 Engine 11 | . 14 11 9 Treads 7 | . 17 . . Hover 2 | . . . 5 Flight 16 | . 10 22 19 Device 19 | . 16 29 18 Storage 4 | . 10 . . Processor 3 | . . . 8 Energy Gun 5 | . 10 3 . Energy Cannon 2 | . . 4 4 Ballistic Gun 10 | . 14 11 7 Peak Build Rating 19 | 5 7 10 19 Average Rating 9 | 3 6 8 14 On Entrance 5 | . 5 6 10 Avg Prop Armor Cover (%) 5 | . 12 . 5 Naked Turns . | . . . . Heaviest Build 17 | 9 15 13 17 Greatest Support 40 | 40 40 14 22 Greatest Overweight (x) 3 | . 3 1 2 Average Overweight (x) . | . . . . Largest Inventory Capacity 8 | 5 8 5 5 Average Capacity 5 | 5 7 5 5 Most Carried 8 | 5 8 5 5 Average Carried 4 | 2 5 4 4 Final Capacity 5 | 5 5 5 5 Final Carried 5 | 5 5 5 3 Class Distribution -------------------- 100% | Mutant Dominant Class ---------------- Mutant | -10/Materials Mutant | -9/Materials Mutant | -8/Materials Resources | -11 -10 -9 -8 ----------- Run | Yrd Mat Mat Mat Matter Collected 472 | 204 143 63 62 Remotely 63 | . . 63 . Salvage Created 534 | . 298 105 131 Parts 45 | . 19 6 20 Haulers Intercepted 1 | . . 1 . Recyclers Shooed 2 | . 2 . . Parts Field Recycled . | . . . . Retrieved Matter . | . . . . Parts Self-Destructed . | . . . . Prevented . | . . . . Parts Restored . | . . . . Kills | -11 -10 -9 -8 ------- Run | Yrd Mat Mat Mat Combat Hostiles Destroyed 13 | . 5 1 7 Guns 6 | . 5 1 . AOE 7 | . . . 7 Classes Destroyed 9 | . 5 2 2 Worker 1 | . 1 . . Builder 1 | . . . 1 Hauler 1 | . . 1 . Recycler 1 | . 1 . . Watcher 1 | . 1 . . Swarmer 9 | . 3 . 6 Grunt 2 | . 2 . . Duelist 1 | . . . 1 Sentry 1 | . . 1 . Best Kill Streak 6 | . 6 1 4 Combat Bots Only 4 | . 3 1 4 Max Kills in Single Turn 4 | . 2 1 4 Gunslinging 1 | . 1 . . Exploded 4 | . . . 4 Melee . | . . . . Uniques/NPCs Destroyed . | . . . . Combat | -11 -10 -9 -8 -------- Run | Yrd Mat Mat Mat Hostile Shots Fired 237 | . 18 4 215 Missed 111 | . 9 4 98 Hits 126 | . 9 . 117 Melee 2 | . . . 2 Projectile 124 | . 9 . 115 Critical Strikes 1 | . . . 1 Damage Taken 1526 | . 88 25 1413 Core 568 | . 9 . 559 Absorbed by Shields . | . . . . Core Remaining (%) 98 | 100 96 100 . Volleys Fired 41 | . 19 5 17 Largest 2 | . 2 2 2 Hottest 76 | . 60 76 76 Shots Fired 69 | . 38 10 21 Gun 58 | . 38 8 12 Cannon 6 | . . 2 4 Launcher 5 | . . . 5 Special . | . . . . Kinetic 34 | . 19 5 10 Thermal . | . . . . Explosive 5 | . . . 5 Electromagnetic 30 | . 19 5 6 Robot Hit Streak 6 | . 4 6 3 Robot Miss Streak 3 | . 2 3 2 Penetration Max . | . . . . Secondary Targets 3 | . 3 . . Max Gunslinging Chain 1 | . 1 . . Shots Hit Robots 37 | . 21 6 10 Core Hits 33 | . 12 4 17 Critical Kills . | . . . . Critical Parts Destroyed . | . . . . Critical Strikes 1 | . 1 . . Corrupt 1 | . 1 . . Melee Attacks . | . . . . Impact . | . . . . Slashing . | . . . . Piercing . | . . . . Sneak Attacks . | . . . . Combat Hostiles . | . . . . Follow-up Attacks . | . . . . Damage Inflicted 1098 | . 310 84 704 Guns 427 | . 309 46 72 Cannons 76 | . . 38 38 Explosions 592 | . . . 592 Melee . | . . . . Ramming 3 | . 1 . 2 Kinetic 221 | . 133 34 54 Thermal 7 | . . . 7 Explosive 396 | . . . 396 Electromagnetic 471 | . 176 50 245 Impact . | . . . . Slashing . | . . . . Piercing . | . . . . Highest Corruption 2 | . 2 . . Average Corruption 2 | . 2 . . Corruption Purged . | . . . . Corruption Blocked . | . . . . Effects 1 | . 1 . . Matter Fused 1 | . 1 . . Overload Shots . | . . . . Overflow Damage 6 | . . . 6 Projectiles 3 | . . . 3 Explosions 3 | . . . 3 Melee . | . . . . Knockbacks . | . . . . Impact . | . . . . Kinetic . | . . . . Secondary . | . . . . Self-Inflicted Damage 69 | . . . 69 Shots 4 | . . . 4 Rammed 2 | . 1 . 1 Targets Rammed 2 | . 1 . 1 Kicked . | . . . . Crushed . | . . . . Highest Temperature 69 | . 24 28 69 Average Temperature 18 | . 10 16 25 Received Heat Transfer 375 | . 24 . 351 Siege Activations . | . . . . Martial Activations . | . . . . Shielding Activations . | . . . . Robots Disrupted . | . . . . Combat Hostiles . | . . . . Robots Corrupted . | . . . . Combat Hostiles . | . . . . Parts Fried . | . . . . Impact Corruptions . | . . . . Robots Melted . | . . . . Combat Hostiles . | . . . . Parts Melted . | . . . . Heat Transferred 50 | . . . 50 Parts Sabotaged . | . . . . Parts Stolen . | . . . . Parts Stripped . | . . . . Power Chain Reactions 1 | . . . 1 Alert | -11 -10 -9 -8 ------- Run | Yrd Mat Mat Mat Maximum Alert Level 2 | . . . 2 Low Security (%) 77 | 100 100 100 38 Level 1 7 | . . . 20 Level 2 14 | . . . 40 Level 3 . | . . . . Level 4 . | . . . . Level 5 . | . . . . High Security . | . . . . Max Security . | . . . . Peak Influence 540 | . 87 30 540 Initial . | . . . . Average 109 | . 31 4 261 Influence Increases 1009 | . 138 37 834 Destroy 0b10 Robot/C 260 | . 100 20 140 Destroy 0b10 Robot/NC 25 | . 15 5 5 Destroy Leader 54 | . 22 12 20 Disable Machine 30 | . . . 30 Destroy Structure 25 | . 1 . 24 Partial Spotted 45 | . . . 45 Lose Combat Pursuer 570 | . . . 570 Influence Decreases 475 | . 138 37 300 Time Decay 315 | . 138 37 140 Lost Part 160 | . . . 160 Squads Dispatched 7 | . . . 7 Investigation 1 | . . . 1 Extermination . | . . . . Reinforcement 3 | . . . 3 Assault . | . . . . Garrison 3 | . . . 3 Intercept . | . . . . Searches Triggered . | . . . . Construction Impeded 1 | . . . 1 Haulers Reinforced . | . . . . Active Scanning Responses . | . . . . Cargo Convoy Interrupts . | . . . . Stealth | -11 -10 -9 -8 --------- Run | Yrd Mat Mat Mat Distress Signals 1 | . . . 1 Communications Jammed . | . . . . Distress Signals . | . . . . Times Spotted 70 | . 7 2 61 Peak Tracking Total 16 | . 4 1 16 Tactical Retreats 7 | . . . 7 Traps | -11 -10 -9 -8 ------- Run | Yrd Mat Mat Mat Traps Triggered 3 | . 1 1 1 Indirectly . | . . . . Trap Hack Attempts . | . . . . Triggered . | . . . . Disarmed . | . . . . Reprogrammed . | . . . . Reused . | . . . . Traps Extracted . | . . . . Installed . | . . . . Triggered . | . . . . Machines | -11 -10 -9 -8 ---------- Run | Yrd Mat Mat Mat Machines Disabled 2 | . . . 2 Max in Single Turn 1 | . . . 1 Machines Repaired . | . . . . Machines Dismantled . | . . . . Machines Sabotaged . | . . . . Overloaded Fab Kills . | . . . . Hacking | -11 -10 -9 -8 --------- Run | Yrd Mat Mat Mat Machines Accessed 2 | . . 1 1 Terminals 2 | . . 1 1 Fabricators . | . . . . Repair Stations . | . . . . Recycling Units . | . . . . Scanalyzers . | . . . . Garrison Access . | . . . . Total Hacks 2 | . . 1 1 Successful 2 | . . 1 1 Failed . | . . . . Catastrophic . | . . . . Database Lockouts . | . . . . Manual . | . . . . Terminals 2 | . . 1 1 Fabricators . | . . . . Repair Stations . | . . . . Recycling Units . | . . . . Scanalyzers . | . . . . Garrison Access . | . . . . Terminal Hacks 2 | . . 1 1 Alert Level 1 | . . . 1 Dispatch Records 1 | . . 1 . Fabricator Hacks . | . . . . Repair Station Hacks . | . . . . Recycling Unit Hacks . | . . . . Scanalyzer . | . . . . Garrison Access Hacks . | . . . . Unauthorized Hacks . | . . . . Terminals . | . . . . Fabricators . | . . . . Repair Stations . | . . . . Recycling Units . | . . . . Scanalyzers . | . . . . Garrison Access . | . . . . Data Cores Recovered . | . . . . Used . | . . . . Hacking Detections . | . . . . Full Trace Events . | . . . . Feedback Events . | . . . . Feedback Blocked . | . . . . Robot Schematics Acquired . | . . . . Robots Built . | . . . . Authchips . | . . . . Time . | . . . . Total Robot Build Rating . | . . . . Part Schematics Acquired . | . . . . Parts Built . | . . . . Authchips . | . . . . Time . | . . . . Total Part Build Rating . | . . . . Part Studies Acquired . | . . . . Parts Repaired . | . . . . Time . | . . . . Parts Recycled . | . . . . Recycled Matter . | . . . . Retrieved Matter . | . . . . Retrieved Components . | . . . . Parts Scanalyzed . | . . . . Part Schematics Acquired . | . . . . Parts Damaged . | . . . . Bothacking | -11 -10 -9 -8 ------------ Run | Yrd Mat Mat Mat Used RIF Installer . | . . . . Robots Hacked . | . . . . Non-combat . | . . . . Combat . | . . . . Robot Hacks Applied . | . . . . Relay Couplers Released . | . . . . Fabnet Peak Effective % . | . . . . Robots Rewired . | . . . . Allies Hacked . | . . . . Hacks Repelled . | . . . . Allies | -11 -10 -9 -8 -------- Run | Yrd Mat Mat Mat Total Allies . | . . . . Largest Group . | . . . . Highest-Rated Group . | . . . . Highest-Rated Ally . | . . . . Total Orders . | . . . . Ally Attacks . | . . . . Total Damage . | . . . . Kills . | . . . . Allies Corrupted . | . . . . Allies Melted . | . . . . Intel | -11 -10 -9 -8 ------- Run | Yrd Mat Mat Mat Active Infowar (turns) 799 | . 388 169 242 Optics 205 | . . . 205 Structural 799 | . 388 169 242 Robot Analysis Total . | . . . . Derelict Logs Recovered . | . . . . Drone Launches . | . . . . Drone Recoveries . | . . . . Exploration | -11 -10 -9 -8 ------------- Run | Yrd Mat Mat Mat Turns Passed 1025 | 75 405 169 376 Spaces Moved 1390 | 44 254 326 766 Core 33 | 6 . . 27 Treads 152 | 38 114 . . Legs . | . . . . Wheels . | . . . . Hover 3 | . . . 3 Flight 1202 | . 140 326 736 Fastest Speed 34 | 50 37 37 34 Average Speed 59 | 145 131 45 37 Slowest Speed 300 | 160 300 117 180 Overloaded Moves . | . . . . Propulsion Burnouts . | . . . . Robots Hopped 37 | . . . 37 Potential Cave-ins . | . . . . Cave-ins Triggered . | . . . . Exploration Rate (%) 31 | 3 46 27 50 Regions Visited 3 Branch Regions . Pre-discovered Areas . | . . . . Known Exits Taken . | . . . . Unknown Exits Taken 3 | 1 1 1 . Scrap Searched . | . . . . Spaces Dug . | . . . . Terrain Destroyed 23 | . . . 23 Melee . | . . . . Projectile . | . . . . AOE 23 | . . . 23 Terrain Rammed . | . . . . Walls Destroyed . | . . . . Machines Disabled . | . . . . Actions | -11 -10 -9 -8 --------- Run | Yrd Mat Mat Mat Total 1467 | 53 287 334 793 Wait 32 | . . . 32 Move 1322 | 43 253 325 701 Hop 28 | . . . 28 Pick Up 11 | 5 4 1 1 Fast Attach 15 | 5 2 1 7 Attach 5 | . 1 1 3 Detach . | . . . . Swap 5 | . 2 1 2 Drop 6 | . 5 . 1 Fire 41 | . 19 5 17 Melee . | . . . . Ram 1 | . . . 1 Kick . | . . . . Crush 1 | . 1 . . Escape Stasis . | . . . . Rewire . | . . . . Trap . | . . . . Miscellaneous . | . . . . Route ------- -11/Scrapyard -10/Materials (discovered 2 exits: *Mat / [*Min]) -9/Materials -8/Materials History --------- Turn | Location | Event 46 | -11/Scrapyard | Discovered new exit (range 15) 76 | -11/Scrapyard | Entered Materials 232 | -10/Materials | Discovered new exit (range 7) 304 | -10/Materials | Build established: Mutant 412 | -10/Materials | Discovered new exit (range 15) 481 | -10/Materials | Entered another Materials area 481 | -9/Materials | Evolved 2 slots: Propulsion x1, Utility x1 648 | -9/Materials | Discovered new exit (range 4) 650 | -9/Materials | Entered another Materials area 650 | -8/Materials | Evolved 2 slots: Power x1, Propulsion x1 778 | -8/Materials | Garrison activated, responded to threat 994 | -8/Materials | Core integrity fell below 50% 1005 | -8/Materials | Core integrity fell below 20% 1026 | -8/Materials | Destroyed by Y-45 Defender with Beam Rifle Last Messages --------------- 00979_ S-10 Pest destroyed. 00980_ Adv. Weight Redist. System destroyed. 00980_ Minigun destroyed. 00980_ Acquired Lgt. Ion Engine. 00984_ U-05 Engineer works on Matter Filter. 00995_ Weight Redist. System destroyed. 00996_ Lgt. Ion Engine destroyed. 00999_ Imp. Flight Unit destroyed. 01009_ Acquired Grenade Launcher. 01012_ S-10 Pest destroyed. 01012_ Destroyed Flight Unit. 01012_ S-10 Pest destroyed. 01015_ U-05 Engineer lays Concrete. 01022_ U-05 Engineer destroyed. 01025_ The unstable cave ceiling collapses. 01025_ Atomic Centrifuge disabled. 01025_ L-31 Rogue destroyed. 01025_ Grenade Launcher destroyed. 01026_ ALERT: Construction progress impeded, dispatching reinforcements to local area. Map ----- +----------------------------------------------------+ | ######?#### # """ ##?????????????? | | ######???## #! """ ##?????????????? | | # ???????##"# """ ##?????????????? | | # ???????##%# ?? ]##?????????????? | | ######### # ???????##"# ?? ##?????????????? | | ######### # ???????##+###??#####?????????????? | | ##?????## # ???????? ??#####?????????????? | | ##?????## / ????????? /??????????????????????? | | ##????? # # # ??? ??????????????????????? | | # ####????? # ####### ??? ??????????????????????? | | # ####????? / # ??? ??????????????????????? | | # ##??????? # # ??? ??????????????????????? | | # ###?????? # # ???!???????????????????????? | | #+###?????? # ? + ??? ???????????????????????? | | ##???##### # ??????????????????????????? | | ##???#####+##+## ########## ##????????????????? | | ##???## # ######### ##????????????????? | | ##???## / ##????????????????? | | ##???## # ### ########????????????????? | | ###########+#### #### ########????????????????? | | ############## #### #### ##??????????????????????? | | #### #### ##??????????????????????? | | ############## #### #### ######??????????????????? | | ############## #### ####;######??????????????????? | | ##??????????## #### ## ! ##??????????????????? | | ##?????????? # ## #!%@ ##??????????????????? | | ##?????????? # ## ! /##??????????????????? | | ##?????????? + ## [[[]= ##??????????????????? | | ##?????????? # ## ] g []] ###?????????????????? | | ##?????????? # ## g []% ##?????????????????? | | ##?????????? # ## g ######?????????????????? | | ##??????????##+## bY #?????????????????? | | ############# "" #?????????????????? | | #?"" Y # u "" #?????????????????? | | ########### #?"T # Y## Y""" #?????????????????? | | #?????????# #?""?# ## #?????????????????? | | #?????????# #????# ##""u""" #?????????????????? | | #?????????# #????+ ##"T """ #?????????????????? | | #?????????# #????# ##"" """ #?????????????????? | | #??######## #???## ## #?????????????????? | | #??# # #???# ! ##/##############+###??????? | | #??# # #####! == "#??????? | | #??# + T [%!%= "%+ ?????? | | #??# """ # ##### !! "#??????? | | #??# """ # #???# ##+#########+####??????????? | | #??# """ # #???### ### #????????????????? | | #??######## #?????# #?# [ #????????????????? | | ########### #?????# #?# "" #????????????????? | | #######+### "" #????????????????? | | ############# # #????????????????? | +----------------------------------------------------+ Best States ------------- Heat Dissipation 31 Energy Generation 15 Energy Capacity 400 Matter Stores 300 Matter Capacity 300 Sight Range 20 Terrain Scan Density 10 Additional Mass Support 9 Evasion (%) 63 Recoil Reduction 2 Item Schematics ----------------- None Robot Schematics ------------------ None Fabricated ------------ Nothing Repaired ---------- Nothing Studied --------- None Alien Tech Used ----------------- None Achievements -------------- Slippery One Challenges ------------ None Game ------ Seed BurstForceSuperbattery Manual? 0 Play Time 00:15:31 Cumulative 17.8 hours Start 2026.09.08 @ 19:59:37 End 2026.09.08 @ 20:12:19 Sessions 1 Manual Loads 0 Difficulty Rogue Special Mode None Game No. 38 Rogue 38 Adventurer 0 Explorer 0 Win Type - Total 0 Types 0/0/0/0/0/0/0/0/0/0 Lore% 10 Gallery% 18 Achievement% 16 Wizard Run 0 Options --------- Layout 1 ASCII 0 Keyboard 0 Movement Arrows Keybinds 0 Fullscreen 2 Font 24/Smallcaps Map View 50x35 Zoom Use 0% Tactical HUD 1 Map Filters NONE Filters NONE Steam 1 RUN: 683818d2-0017-4224-bd20-2e501eefda2b